bitfinex-derivatives/quotes_SOLF0:USTF0_20250105
["timestamp","ask_amount","ask_price","bid_price","bid_amount"]
[1736107446782,7.4865913,212.96,212.93,92.10693339]
[1736107447077,7.4865913,212.94,212.88,26.02457259]
[1736107447476,7.4865913,212.94,212.89,2.3492]
[1736107448776,7.4865913,212.94,212.87,3.0379]
[1736107448970,7.4865913,212.94,212.88,2.3493]
[1736107450072,7.4865913,212.94,212.84,26.02457259]
[1736107450073,7.4865913,212.92,212.84,33.51116389]
[1736107450268,2.56,212.91,212.84,33.51116389]
[1736107450474,2.56,212.91,212.84,14.01491358]
[1736107451076,2.56,212.91,212.85,2.3495]
[1736107451279,2.56,212.91,212.86,7.4865913]
[1736107452080,2.56,212.91,212.86,9.8360913]
[1736107452584,2.56,212.91,212.88,7.4865913]
[1736107452779,2.56,212.91,212.86,2.3495]
[1736107452976,2.56,212.91,212.87,7.4865913]
[1736107453572,2.56,212.91,212.87,9.8359913]
[1736107454881,2.56,212.91,212.87,7.4865913]
[1736107456485,2.56,212.91,212.89,2.3492]
[1736107459694,2.56,212.92,212.89,7.4865913]
[1736107460293,2.56,212.92,212.9,2.3491]
[1736107460892,7.4865913,212.97,212.9,2.3491]
[1736107461202,2.56,212.96,212.92,2.3488]
[1736107465402,7.4865913,212.95,212.83,26.07022954]
[1736107465591,7.4865913,212.95,212.87,7.4865913]
[1736107465794,7.4865913,212.95,212.88,2.3492]
[1736107465992,7.4865913,212.93,212.87,7.4865913]
[1736107466294,7.4865913,212.93,212.85,7.4865913]
[1736107466602,2.56,212.96,212.85,7.4865913]
[1736107466603,7.4865913,212.91,212.85,7.4865913]
[1736107466799,2.56,212.9,212.85,7.4865913]
[1736107467200,2.56,212.9,212.81,7.83922247]
[1736107467401,2.56,212.9,212.84,7.4865913]
[1736107467603,2.56,212.9,212.84,105.47987159]
[1736107467906,2.56,212.9,212.84,97.99328029]
[1736107467907,7.4865913,212.89,212.84,97.99328029]
[1736107468100,7.4865913,212.87,212.84,97.99328029]
[1736107469801,7.4865913,212.85,212.82,2.3499]
[1736107470008,2.56,212.84,212.81,6.40812247]
[1736107476012,2.56,212.84,212.82,7.4865913]
[1736107476410,2.56,212.84,212.83,2.3497]
[1736107486019,2.56,212.84,212.82,2.3499]
[1736107487920,10.0465913,212.84,212.81,8.75812247]
[1736107488122,10.0465913,212.84,212.81,6.40812247]
[1736107494221,10.0465913,212.84,212.8,2.3502]
[1736107502421,10.0465913,212.84,212.81,2.35]
[1736107503024,2.56,212.84,212.83,2.3498]
[1736107503422,2.56,212.84,212.8,2.3501]
[1736107503623,2.56,212.84,212.79,7.4865913]
[1736107504225,2.56,212.84,212.81,2.35]
[1736107505826,2.56,212.84,212.77,7.4865913]
[1736107506028,2.56,212.84,212.82,2.3499]
[1736107508025,2.56,212.83,212.82,2.3499]
[1736107512325,10.0465913,212.83,212.75,6.51755738]
[1736107512531,7.4865913,212.8,212.75,6.51755738]
[1736107513426,7.4865913,212.8,212.78,2.3504]
[1736107514131,7.4865913,212.82,212.78,2.3504]
[1736107514424,2.56,212.83,212.81,2.35]
[1736107514625,2.56,212.83,212.77,7.4865913]
[1736107514830,2.56,212.83,212.79,7.4865913]
[1736107515027,2.56,212.83,212.82,2.3499]
[1736107520928,2.56,212.83,212.81,2.35]
[1736107521533,2.56,212.83,212.82,2.3499]
[1736107523132,7.4865913,212.88,212.82,2.3499]
[1736107523332,7.4865913,212.88,212.81,7.4865913]
[1736107523530,2.56,212.87,212.83,7.4865913]
[1736107525334,2.56,212.87,212.84,2.3497]
[1736107525535,2.56,212.87,212.83,7.4865913]
[1736107526435,2.56,212.87,212.85,2.3496]
[1736107527538,2.56,212.87,212.84,2.3497]
[1736107527737,7.4865913,212.9,212.84,2.3497]
[1736107528038,2.56,212.89,212.84,2.3497]
[1736107528237,7.4865913,212.88,212.84,2.3497]
[1736107533134,7.4865913,212.88,212.8,7.4865913]
[1736107533335,7.4865913,212.86,212.82,2.3499]
[1736107533536,7.4865913,212.86,212.78,107.44627901]
[1736107533737,7.4865913,212.84,212.78,114.93287031]
[1736107534036,10.0465913,212.84,212.78,10.3418913]
[1736107534233,10.0465913,212.84,212.8,2.3501]
[1736107536540,2.56,212.84,212.8,2.3501]
[1736107537441,4.4313,212.94,212.82,7.4865913]
[1736107537640,3.3184044,212.93,212.84,7.4865913]
[1736107537835,7.4865913,212.91,212.84,7.4865913]
[1736107538037,7.4865913,212.91,212.86,2.3495]
[1736107538236,7.4865913,212.91,212.84,7.4865913]
[1736107538642,2.56,212.93,212.84,7.4865913]
[1736107538842,7.4865913,212.91,212.84,7.4865913]
[1736107539542,7.4865913,212.91,212.86,2.3494]
[1736107539844,7.4865913,212.91,212.84,7.4865913]
[1736107540141,2.56,212.9,212.84,9.8361913]
[1736107541642,7.4865913,212.87,212.78,107.44627901]
[1736107541842,7.4865913,212.87,212.8,7.4865913]
[1736107542638,7.4865913,212.85,212.78,114.93287031]
[1736107542943,2.56,212.84,212.78,107.44627901]
[1736107544545,2.56,212.84,212.78,109.79657901]
[1736107544844,2.56,212.84,212.78,117.28317031]
[1736107545047,2.56,212.84,212.79,2.3503]
[1736107549551,7.4865913,212.85,212.82,2.3499]
[1736107549753,2.56,212.84,212.82,2.3499]
[1736107554854,2.56,212.84,212.81,2.35]
[1736107555455,2.56,212.84,212.78,114.93287031]
[1736107555656,2.56,212.84,212.79,2.3502]
[1736107557463,2.56,212.84,212.78,109.79667901]
[1736107557759,7.4865913,212.83,212.78,109.79667901]
[1736107559063,2.56,212.84,212.78,109.79667901]
[1736107559865,2.56,212.84,212.78,107.44627901]
[1736107561165,2.56,212.84,212.8,2.3502]
[1736107565675,2.56,212.84,212.79,7.4865913]
[1736107565874,8.23006878,212.92,212.79,7.4865913]
[1736107566176,7.4865913,212.88,212.79,7.4865913]
[1736107567474,7.4865913,212.88,212.82,2.3499]
[1736107569571,7.4865913,212.86,212.82,2.3499]
[1736107569873,2.56,212.85,212.82,2.3499]
[1736107573982,2.56,212.85,212.8,2.3501]
[1736107578190,2.56,212.85,212.81,2.35]
[1736107584681,2.56,212.85,212.79,7.4865913]
[1736107584878,2.56,212.85,212.82,2.3499]
[1736107599600,7.4865913,212.9,212.83,7.4865913]
[1736107599799,2.56,212.87,212.83,7.4865913]
[1736107601098,130.66421314,213.02,212.85,9.8361913]
[1736107601305,7.4865913,212.94,212.87,7.4865913]
[1736107602204,2.56,212.93,212.89,7.4865913]
[1736107603410,2.56,212.93,212.91,7.4865913]
[1736107604899,2.56,212.93,212.89,7.4865913]
[1736107605793,2.56,212.93,212.88,2.3492]
[1736107605998,2.56,212.93,212.86,2.3494]
[1736107606194,2.56,212.93,212.86,9.8359913]
[1736107606403,2.56,212.93,212.86,7.4865913]
[1736107607405,2.56,212.93,212.87,2.3494]
[1736107608498,2.56,212.93,212.88,7.4865913]
[1736107609804,2.56,212.93,212.87,9.8359913]
[1736107610900,2.56,212.93,212.87,7.4865913]
[1736107611098,2.56,212.93,212.88,2.3493]
[1736107612909,4.5012,213.01,212.89,7.4865913]
[1736107613111,2.56,212.96,212.9,2.349]
[1736107613408,2.56,212.96,212.89,7.4865913]
[1736107614010,2.56,212.96,212.91,9.8354913]
[1736107614312,2.56,212.95,212.91,7.4865913]
[1736107615412,2.56,212.95,212.92,2.3488]
[1736107625322,7.4865913,212.97,212.92,2.3488]
[1736107625518,2.56,212.96,212.92,2.3488]
[1736107629524,2.56,212.96,212.91,7.4865913]
[1736107629724,9.44228868,213.08,212.95,7.4865913]
[1736107630025,7.4865913,213.03,212.95,7.4865913]
[1736107630227,2.56,213.02,212.95,7.4865913]
[1736107630419,7.4865913,213.03,212.95,7.4865913]
[1736107630622,2.56,213.02,212.95,7.4865913]
[1736107630825,7.4865913,213.03,212.95,7.4865913]
[1736107631025,2.56,213.02,212.95,7.4865913]
[1736107631426,2.56,213.02,212.97,2.3483]
[1736107631831,2.56,213.02,212.95,7.4865913]
[1736107632030,2.56,213.02,212.97,2.3483]
[1736107632527,2.56,213.02,212.97,9.8348913]
[1736107632728,2.56,213.01,212.97,9.8348913]
[1736107633230,51.3,213.09,212.97,7.4865913]
[1736107633432,7.4865913,213.05,212.99,2.348]
[1736107634030,2.56,213.04,212.99,2.348]
[1736107635729,7.4865913,213.07,212.99,7.4865913]
[1736107635928,2.56,213.06,213.01,7.4865913]
[1736107636130,7.4865913,213.07,213.01,7.4865913]
[1736107636330,2.56,213.06,213.01,7.4865913]
[1736107636935,7.4865913,213.07,213.01,7.4865913]
[1736107636936,51.3,213.09,213.01,7.4865913]
[1736107637136,7.4865913,213.07,213.01,7.4865913]
[1736107637431,7.4865913,213.07,213.01,9.8343913]
[1736107641234,7.4865913,213.07,213.01,7.4865913]
[1736107641434,2.56,213.06,213.02,2.3477]
[1736107642540,2.56,213.06,213.01,7.4865913]
[1736107642740,10.0465913,213.06,213.0,2.3479]
[1736107646449,10.0465913,213.06,213.01,2.3478]
[1736107648948,10.0465913,213.06,213.02,2.3477]
[1736107650348,2.56,213.06,213.02,2.3477]
[1736107650844,2.56,213.06,213.01,7.4865913]
[1736107651146,2.56,213.06,213.01,9.8343913]
[1736107654249,7.4865913,213.08,213.01,7.4865913]
[1736107654447,2.56,213.07,213.03,2.3476]
[1736107654852,2.56,213.07,213.01,7.4865913]
[1736107656555,2.56,213.07,213.02,2.3477]
[1736107667858,2.56,213.07,213.01,7.4865913]
[1736107668062,2.56,213.07,213.01,9.8343913]
[1736107671967,2.56,213.07,213.02,2.3477]
[1736107682476,7.4865913,213.04,212.98,2.3482]
[1736107684575,10.0465913,213.07,212.98,9.8347913]
[1736107686279,10.0465913,213.07,212.98,7.4865913]
[1736107686573,10.0465913,213.07,213.0,7.4865913]
[1736107687479,2.56,213.07,213.02,7.4865913]
[1736107691075,2.56,213.07,213.01,2.3478]
[1736107692179,10.0465913,213.07,213.01,2.3478]
[1736107692380,10.0465913,213.07,212.96,121.23196933]
[1736107692679,10.0465913,213.07,212.98,7.4865913]
[1736107693475,10.0465913,213.07,212.98,9.8346913]
[1736107694577,10.0465913,213.07,212.96,114.71441195]
[1736107694882,10.0465913,213.07,213.0,7.4865913]
[1736107695082,10.0465913,213.07,213.0,9.8344913]
[1736107695380,10.0465913,213.07,212.99,7.4865913]
[1736107696479,7.4865913,213.05,212.99,9.8346913]
[1736107697886,7.4865913,213.05,213.0,2.3479]
[1736107698385,7.4865913,213.03,212.98,2.3482]
[1736107698588,2.56,213.02,212.96,114.71441195]
[1736107698976,2.56,213.02,212.97,2.3483]
[1736107703888,2.56,213.02,212.96,114.71441195]
[1736107704088,2.56,213.02,212.98,2.3482]
[1736107706093,10.0465913,213.02,212.98,2.3482]
[1736107710096,10.0465913,213.02,212.96,114.71441195]
[1736107710097,7.4865913,213.0,212.96,114.71441195]
[1736107710298,7.4865913,212.98,212.96,114.71441195]
[1736107712698,2.56,213.02,212.96,114.71441195]
[1736107712903,7.4865913,212.99,212.96,114.71441195]
[1736107717698,7.4865913,212.99,212.95,2.3485]
[1736107718908,7.4865913,213.01,212.96,2.3484]
[1736107722903,3.524074,213.0,212.96,2.3484]
[1736107723109,3.524074,213.0,212.94,7.4865913]
[1736107723605,3.524074,212.99,212.94,7.4865913]
[1736107724008,9.45582962,212.99,212.94,7.4865913]
[1736107724210,9.45582962,212.99,212.96,2.3484]
[1736107725206,8.22634096,212.98,212.94,2.3485]
[1736107725406,8.22634096,212.98,212.93,7.4865913]
[1736107725806,8.22634096,212.97,212.93,7.4865913]
[1736107726108,8.22634096,212.96,212.95,2.3485]
[1736107726307,7.4865913,212.99,212.95,2.3485]
[1736107726910,2.348,213.0,212.96,2.3484]
[1736107728311,2.348,213.0,212.97,23.73797874]
[1736107728513,2.348,213.0,212.98,4.15544801]
[1736107728708,2.348,213.0,212.99,17.08926192]
[1736107729304,2.348,213.0,212.99,12.93381391]
[1736107735816,2.3479,213.01,212.99,17.03453927]
[1736107736114,60.45556067,213.05,213.0,18.25367337]
[1736107736311,2.56,213.04,213.01,5.31985946]
[1736107736510,2.56,213.04,213.02,4.10006345]
[1736107736815,2.56,213.04,213.03,18.25316704]
[1736107737407,2.56,213.05,213.03,18.25316704]
[1736107737613,2.56,213.05,213.04,4.10006345]
[1736107737918,2.56,213.05,213.04,17.03387736]
[1736107739915,2.56,213.05,213.04,18.25272393]
[1736107740518,2.56,213.05,213.04,5.31891002]
[1736107740720,2.56,213.05,213.04,17.98882795]
[1736107740921,4.9074,213.05,213.04,17.98882795]
[1736107741119,2.56,213.05,213.04,17.98882795]
[1736107741518,2.56,213.05,213.04,12.66991793]
[1736107744721,2.56,213.05,213.04,4.87304536]
[1736107752523,8.1311523,213.06,213.04,4.87304536]
[1736107752728,10.6911523,213.06,213.05,4.87304536]
[1736107775333,10.6911523,213.06,213.05,6.09171887]
[1736107776341,10.6911523,213.06,213.05,10.11660497]
[1736107778145,10.6911523,213.06,213.05,6.09171887]
[1736107780037,10.6911523,213.06,213.05,4.87304536]
[1736107780241,10.6911523,213.06,213.05,6.09345182]
[1736107780653,10.6911523,213.06,213.05,6.09421626]
[1736107782340,10.6911523,213.06,213.05,6.09453904]
[1736107786455,10.6911523,213.06,213.05,6.09458535]
[1736107789760,10.6911523,213.06,213.05,4.87304536]
[1736107789961,10.6911523,213.06,213.05,6.09461663]
[1736107790162,10.6911523,213.06,213.05,6.0946133]
[1736107791864,10.6911523,213.06,213.05,6.09461971]
[1736107795956,10.6911523,213.06,213.01,9.8343913]
[1736107796158,10.6911523,213.06,213.05,4.779746]
[1736107803062,8.3438523,213.06,213.05,4.779746]
[1736107803265,2.56,213.06,213.05,4.779746]
[1736107808171,5.02174015,213.18,213.05,4.779746]
[1736107808366,7.4865913,213.13,213.06,4.779746]
[1736107808559,2.56,213.12,213.07,4.779746]
[1736107809067,2.3469,213.1,213.08,4.779746]
[1736107809670,2.3469,213.1,213.09,4.779746]
[1736107810066,4.9069,213.1,213.09,4.779746]
[1736107812665,8.09471145,213.13,213.09,4.779746]
[1736107812877,8.09471145,213.13,213.09,12.2663373]
[1736107813065,10.65471145,213.13,213.09,12.2663373]
[1736107813266,10.65471145,213.13,213.1,4.779746]
[1736107813561,10.65471145,213.13,213.11,4.779746]
[1736107813968,10.65471145,213.13,213.12,4.779746]
[1736107814163,8.09471145,213.13,213.12,4.779746]
[1736107814366,10.65471145,213.13,213.12,4.779746]
[1736107814567,2.3463,213.15,213.12,4.779746]
[1736107814768,2.56,213.14,213.12,4.779746]
[1736107815068,2.56,213.14,213.13,4.779746]
[1736107815269,4.9063,213.15,213.13,4.779746]
[1736107815471,4.9063,213.15,213.14,4.779746]
[1736107818080,4.6898,213.29,213.14,4.779746]
[1736107818081,51.26,213.34,213.14,4.779746]
[1736107818273,7.4865913,213.25,213.19,7.4865913]
[1736107818474,2.56,213.24,213.19,7.4865913]
[1736107818777,2.3451,213.27,213.2,4.779746]
[1736107818970,2.56,213.26,213.21,4.779746]
[1736107819369,2.56,213.26,213.22,4.779746]
[1736107819877,2.56,213.26,213.19,7.4865913]
[1736107820075,2.56,213.26,213.2,4.74502951]
[1736107820275,4.9051,213.26,213.21,7.4865913]
[1736107820780,2.3451,213.26,213.22,4.74502951]
[1736107820978,2.56,213.25,213.21,7.4865913]
[1736107827080,2.56,213.25,213.21,9.8321913]
[1736107827379,2.56,213.27,213.23,7.4865913]
[1736107827972,2.56,213.28,213.23,7.4865913]
[1736107828579,2.56,213.28,213.23,9.8318913]
[1736107829183,10.0465913,213.28,213.23,9.8318913]
[1736107830283,2.56,213.28,213.23,9.8318913]
[1736107830485,2.56,213.27,213.24,2.3453]
[1736107832378,2.56,213.27,213.21,7.4865913]
[1736107833488,4.905,213.27,213.21,9.8320913]
[1736107834582,4.905,213.27,213.22,2.3455]
[1736107835384,2.3451,213.26,213.21,9.8321913]
[1736107835789,2.3451,213.26,213.21,2.3456]
[1736107835983,2.3456,213.22,213.19,1.5321]
[1736107836183,2.3456,213.22,213.18,4.88550677]
[1736107836382,4.9056,213.22,213.18,4.88550677]
[1736107837083,4.9056,213.22,213.18,7.23140677]
[1736107840589,2.56,213.22,213.19,7.4865913]
[1736107840791,2.56,213.22,213.19,9.8323913]
[1736107843993,2.56,213.22,213.19,7.4865913]
[1736107844190,2.56,213.22,213.2,2.3457]
[1736107844393,2.3454,213.23,213.2,2.3457]
[1736107847193,2.3454,213.23,213.19,9.8323913]
[1736107847595,2.56,213.24,213.21,2.3456]
[1736107847791,2.56,213.24,213.19,7.4865913]
[1736107848293,2.3454,213.24,213.2,2.3457]
[1736107848498,2.56,213.23,213.2,2.3457]
[1736107850697,2.56,213.23,213.21,9.8321913]
[1736107854200,2.56,213.23,213.21,7.4865913]
[1736107856496,2.56,213.23,213.22,4.74591939]
[1736107862901,4.9054,213.23,213.22,4.74591939]
[1736107863107,12.3919913,213.23,213.22,4.74591939]
[1736107867404,12.3919913,213.23,213.22,1.03661939]
[1736107867805,2.3458,213.2,213.12,7.4865913]
[1736107868008,7.4865913,213.19,213.14,2.3463]
[1736107868205,2.56,213.18,213.14,2.3463]
[1736107870205,7.4865913,213.17,213.08,10.86001921]
[1736107870401,7.4865913,213.17,213.1,7.4865913]
[1736107871510,2.3463,213.16,213.12,2.3466]
[1736107872311,2.3463,213.16,213.12,9.8331913]
[1736107873814,2.3463,213.16,213.12,2.3466]
[1736107875308,2.3463,213.16,213.11,7.4865913]
[1736107875309,7.4865913,213.17,213.08,4.3108]
[1736107875509,7.4865913,213.15,213.07,123.56700935]
[1736107875811,7.4865913,213.13,213.07,123.56700935]
[1736107876011,2.56,213.12,213.09,2.3469]
[1736107877107,2.3468,213.11,213.07,125.91410935]
[1736107877304,2.3468,213.11,213.07,118.42751805]
[1736107877907,9.8333913,213.11,213.07,118.42751805]
[1736107879714,9.8333913,213.11,213.08,4.70927273]
[1736107880217,9.8333913,213.11,213.09,4.70927273]
[1736107880410,7.4865913,213.11,213.1,4.70927273]
[1736107881508,4.9066,213.12,213.1,4.70927273]
[1736107881509,2.56,213.12,213.1,4.70927273]
[1736107881707,10.0465913,213.12,213.1,4.70927273]
[1736107881912,10.0465913,213.12,213.08,2.3471]
[1736107882312,10.0465913,213.12,213.09,4.70433336]
[1736107882816,12.3931913,213.12,213.1,4.70433336]
[1736107883218,12.3931913,213.12,213.07,118.42761805]
[1736107883609,12.3931913,213.12,213.08,4.70273633]
[1736107884017,12.3931913,213.12,213.09,4.70273633]
[1736107884323,12.3931913,213.12,213.07,118.42761805]
[1736107884812,12.3931913,213.12,213.08,4.70143342]
[1736107885014,12.3931913,213.12,213.09,4.70143342]
[1736107885220,10.0465913,213.12,213.07,116.08041805]
[1736107885413,10.0465913,213.12,213.08,2.3471]
[1736107886121,10.0465913,213.12,213.09,4.70068195]
[1736107886522,10.0465913,213.12,213.08,2.3471]
[1736107887216,10.0465913,213.12,213.09,4.6999539]
[1736107887616,9.8334913,213.1,213.09,4.6999539]
[1736107887812,7.4865913,213.1,212.99,7.4865913]
[1736107888014,7.4865913,213.06,212.99,7.4865913]
[1736107888218,2.56,213.05,213.01,2.3477]
[1736107888418,2.56,213.05,213.02,4.70213438]
[1736107888820,2.56,213.05,213.03,4.70213438]
[1736107889123,2.56,213.05,213.04,4.70213438]
[1736107890832,2.56,213.05,213.03,2.3476]
[1736107892129,9.8336913,213.08,213.03,2.3476]
[1736107892330,2.56,213.04,213.03,2.3476]
[1736107892730,2.56,213.04,213.03,7.04343975]
[1736107893234,7.4865913,213.07,213.03,7.04343975]
[1736107893422,2.56,213.06,213.03,7.04343975]
[1736107893830,2.56,213.06,213.03,2.3476]
[1736107894134,7.4865913,213.09,213.04,7.04199514]
[1736107894335,2.56,213.08,213.04,7.04199514]
[1736107894534,2.56,213.08,213.04,2.3474]
[1736107894736,2.56,213.07,213.05,7.4865913]
[1736107894937,2.56,213.07,213.05,12.17979558]
[1736107895137,2.56,213.07,213.05,7.4865913]
[1736107895338,2.56,213.07,213.06,2.3473]
[1736107895738,2.56,213.07,213.05,7.4865913]
[1736107895938,2.56,213.07,213.06,4.69166828]
[1736107896939,2.56,213.07,213.06,7.03896828]
[1736107898434,2.56,213.1,213.06,4.69166828]
[1736107898738,2.56,213.1,213.09,7.4865913]
[1736107899344,2.56,213.1,213.09,12.1812733]
[1736107899535,2.56,213.1,213.09,14.5281733]
[1736107901633,60.42651327,213.15,213.09,12.1812733]
[1736107901838,62.77281327,213.15,213.1,2.3467]
[1736107902146,2.56,213.14,213.1,7.041382]
[1736107902442,2.56,213.14,213.11,4.694682]
[1736107902637,2.56,213.14,213.1,2.3467]
[1736107903538,2.56,213.14,213.11,4.69932944]
[1736107903839,2.56,213.14,213.12,4.69932944]
[1736107904236,60.41809551,213.18,213.09,7.4865913]
[1736107904441,2.56,213.17,213.1,4.70094155]
[1736107904941,2.56,213.17,213.11,4.70094155]
[1736107905134,2.56,213.17,213.09,7.4865913]
[1736107905135,2.56,213.17,213.12,4.70094155]
[1736107905539,4.9061,213.17,213.12,2.3466]
[1736107905739,12.3926913,213.17,213.12,2.3466]
[1736107906542,12.3926913,213.17,213.13,4.7011078]
[1736107906744,10.0465913,213.17,213.13,7.0476078]
[1736107906942,10.0465913,213.17,213.13,2.3465]
[1736107907245,10.0465913,213.17,213.14,4.70200919]
[1736107907545,2.56,213.16,213.13,2.3465]
[1736107908646,2.56,213.16,213.14,4.70361036]
[1736107908945,2.56,213.16,213.13,2.3465]
[1736107909645,2.56,213.16,213.14,4.7044124]
[1736107909942,2.56,213.16,213.13,2.3465]
[1736107910844,2.56,213.16,213.14,4.70534369]
[1736107911243,2.56,213.16,213.13,2.3465]
[1736107911842,2.56,213.16,213.14,4.70639932]
[1736107912046,2.56,213.16,213.13,2.3465]
[1736107912941,2.56,213.16,213.14,4.70744102]
[1736107913146,2.56,213.16,213.13,2.3465]
[1736107913745,2.56,213.16,213.14,4.70823214]
[1736107914150,2.56,213.16,213.13,2.3465]
[1736107914942,2.56,213.16,213.14,4.70958231]
[1736107915342,2.56,213.16,213.15,4.70958231]
[1736107919640,7.4865913,213.18,213.15,4.70958231]
[1736107919845,2.56,213.18,213.17,2.3461]
[1736107920450,2.56,213.18,213.17,7.05568231]
[1736107921853,2.56,213.18,213.17,4.70958231]
[1736107924051,2.56,213.18,213.17,7.05568231]
[1736107928254,60.41174198,213.2,213.17,7.05568231]
[1736107928453,2.56,213.19,213.18,4.70958231]
[1736107934150,239.14629072,213.38,213.15,7.4865913]
[1736107934356,7.4865913,213.26,213.19,7.4865913]
[1736107934657,4.9052,213.26,213.19,7.4865913]
[1736107935053,4.9052,213.26,213.2,7.04199463]
[1736107935254,4.9052,213.26,213.21,4.69629463]
[1736107935560,4.9052,213.26,213.22,4.69629463]
[1736107935955,4.9052,213.26,213.19,7.4865913]
[1736107936352,4.9052,213.26,213.2,4.69554854]
[1736107936561,4.9052,213.26,213.21,2.3456]
[1736107936758,4.9052,213.26,213.22,4.69554854]
[1736107937262,4.9052,213.26,213.21,2.3456]
[1736107937653,2.3452,213.26,213.21,2.3456]
[1736107937853,2.56,213.25,213.22,4.6967919]
[1736107938050,2.56,213.25,213.21,2.3456]
[1736107938553,2.56,213.25,213.22,4.69758956]
[1736107938963,2.56,213.25,213.21,2.3456]
[1736107939564,2.56,213.25,213.22,4.69853861]
[1736107940058,2.56,213.25,213.23,4.69853861]
[1736107940464,2.56,213.25,213.24,4.69853861]
[1736107941157,2.56,213.26,213.24,4.69853861]
[1736107941564,15.57439472,213.3,213.25,4.69853861]
[1736107941759,2.56,213.29,213.25,4.69853861]
[1736107941960,2.56,213.29,213.24,2.3453]
[1736107942562,2.56,213.29,213.25,4.69515289]
[1736107943067,2.56,213.29,213.24,2.3453]
[1736107943667,2.56,213.29,213.25,4.695365]
[1736107943869,2.56,213.29,213.24,2.3453]
[1736107944159,17.91909472,213.3,213.24,2.3453]
[1736107944365,2.56,213.29,213.24,2.3453]
[1736107944666,2.56,213.29,213.25,4.6946723]
[1736107944964,9.8314913,213.28,213.22,2.3455]
[1736107945261,9.8314913,213.28,213.23,4.69472854]
[1736107945457,9.8314913,213.28,213.24,4.69472854]
[1736107945665,2.3449,213.28,213.24,4.69472854]
[1736107945859,9.8314913,213.28,213.25,4.69472854]
[1736107946267,9.8314913,213.28,213.22,2.3455]
[1736107946667,9.8314913,213.28,213.23,4.69506203]
[1736107946969,9.8314913,213.28,213.24,4.69506203]
[1736107947171,9.8314913,213.28,213.22,2.3455]
[1736107947464,9.8314913,213.28,213.23,4.69459036]
[1736107947669,9.8314913,213.28,213.24,4.69459036]
[1736107948067,9.8314913,213.28,213.22,9.8320913]
[1736107948468,9.8314913,213.28,213.23,4.69493469]
[1736107948866,9.8314913,213.28,213.24,4.69493469]
[1736107949166,9.8314913,213.28,213.22,9.8320913]
[1736107949368,9.8314913,213.28,213.23,4.69523947]
[1736107949969,9.8314913,213.28,213.24,4.69523947]
[1736107950165,9.8314913,213.28,213.23,2.3454]
[1736107950774,9.8314913,213.28,213.24,4.69539649]
[1736107951273,9.8314913,213.28,213.23,2.3454]
[1736107951771,9.8314913,213.28,213.24,4.69552887]
[1736107952171,9.8314913,213.28,213.23,2.3454]
[1736107952679,9.8314913,213.28,213.24,4.69568726]
[1736107953171,9.8314913,213.28,213.23,2.3454]
[1736107953677,9.8314913,213.28,213.24,4.69625593]
[1736107953977,9.8314913,213.28,213.25,4.69625593]
[1736107954177,2.56,213.29,213.25,4.69625593]
[1736107954379,2.56,213.29,213.17,4.8853952]
[1736107954380,7.4865913,213.26,213.22,2.3455]
[1736107954772,7.4865913,213.24,213.23,4.69756366]
[1736107954968,10.0465913,213.24,213.23,4.69756366]
[1736107955580,10.0465913,213.24,213.17,4.8853952]
[1736107955878,7.4865913,213.21,213.18,4.69996092]
[1736107956078,7.4865913,213.21,213.19,4.69996092]
[1736107956278,7.4865913,213.21,213.2,4.69996092]
[1736107957074,7.4865913,213.21,213.17,7.2314952]
[1736107957379,7.4865913,213.21,213.2,4.70120813]
[1736107958576,9.8321913,213.21,213.2,4.70120813]
[1736107959273,7.4865913,213.21,213.17,4.8853952]
[1736107959481,7.4865913,213.19,213.17,4.8853952]
[1736107959680,2.58,213.18,213.17,4.8853952]
[1736107959869,2.58,213.18,213.14,2.3464]
[1736107960074,2.58,213.18,213.17,4.70703947]
[1736107964784,2.58,213.18,213.15,2.3463]
[1736107965181,2.58,213.18,213.17,4.71122736]
[1736107967782,2.58,213.18,213.17,7.05732736]